{"text_format":"1","workbook":"xlsx","n_sheets":2,"sheets":["Planning général","Cuisinier A"],"not_rendered":{"charts":0,"images":11,"macros":1,"external_links":0,"defined_names":8,"comments":0,"pivot_tables":0},"unopened":[],"bounds":{"document_bytes":16777216,"sheet_cells":100000,"rows_first":2000,"rows_last":500,"rows_between":2000,"halvings":0,"cell_chars":16384,"cell_head_chars":4096},"cells_cut":0,"cells_raw":0,"read":"whole","date_system":"1900"}

{"sheet":"Planning général","index":0,"n_rows":24,"n_cols":10,"rows_kept":24,"cut":false,"hidden":false,"merged":[[2,9,3,9],[2,4,3,4],[2,5,3,5],[2,6,3,6],[2,7,3,7],[2,8,3,8],[20,3,21,3],[22,3,23,3],[12,3,13,3],[14,3,15,3],[12,2,15,2],[16,2,19,2],[20,2,23,2],[16,3,17,3],[18,3,19,3],[4,2,7,2],[8,2,11,2],[10,3,11,3],[4,3,5,3],[6,3,7,3],[8,3,9,3]]}
[]
[]
[null,null,null,null,"A","B","C","D","E","F"]
[]
[null,null,"LUNDI","MATIN","Course - déchargement"]
[null,null,null,null,"Repas du jour - service"]
[null,null,null,"APRÈS-MIDI","commande - nettoyage"]
[null,null,null,null,"préparation service"]
[null,null,"MARDI","MATIN"]
[null,null,"MARDI"]
[null,null,"MARDI","APRÈS-MIDI"]
[null,null,"MARDI"]
[null,null,"MERCREDI","MATIN"]
[null,null,"MERCREDI"]
[null,null,"MERCREDI","APRÈS-MIDI"]
[null,null,"MERCREDI"]
[null,null,"JEUDI","MATIN"]
[null,null,"JEUDI"]
[null,null,"JEUDI","APRÈS-MIDI"]
[null,null,"JEUDI"]
[null,null,"VENDREDI","MATIN"]
[null,null,"VENDREDI"]
[null,null,"VENDREDI","APRÈS-MIDI"]
[null,null,"VENDREDI"]

{"sheet":"Cuisinier A","index":1,"n_rows":24,"n_cols":5,"rows_kept":24,"cut":false,"hidden":false,"merged":[[2,4,3,4],[4,2,7,2],[4,3,5,3],[6,3,7,3],[8,2,11,2],[8,3,9,3],[10,3,11,3],[20,2,23,2],[20,3,21,3],[22,3,23,3],[12,2,15,2],[12,3,13,3],[14,3,15,3],[16,2,19,2],[16,3,17,3],[18,3,19,3]]}
[]
[]
[null,null,null,null,"A"]
[]
[null,null,"LUNDI","MATIN",{"$f":"IF(ISTEXT('Planning général'!E5),'Planning général'!E5,IF('Planning général'!E5=\"\",\"\"))","v":"Course - déchargement"}]
[null,null,null,null,{"$f":"IF(ISTEXT('Planning général'!E6),'Planning général'!E6,IF('Planning général'!E6=\"\",\"\"))","v":"Repas du jour - service"}]
[null,null,null,"APRÈS-MIDI",{"$f":"IF(ISTEXT('Planning général'!E7),'Planning général'!E7,IF('Planning général'!E7=\"\",\"\"))","v":"commande - nettoyage"}]
[null,null,null,null,{"$f":"IF(ISTEXT('Planning général'!E8),'Planning général'!E8,IF('Planning général'!E8=\"\",\"\"))","v":"préparation service"}]
[null,null,"MARDI","MATIN",{"$f":"IF(ISTEXT('Planning général'!E9),'Planning général'!E9,IF('Planning général'!E9=\"\",\"\"))","v":""}]
[null,null,"MARDI",null,{"$f":"IF(ISTEXT('Planning général'!E10),'Planning général'!E10,IF('Planning général'!E10=\"\",\"\"))","v":""}]
[null,null,"MARDI","APRÈS-MIDI",{"$f":"IF(ISTEXT('Planning général'!E11),'Planning général'!E11,IF('Planning général'!E11=\"\",\"\"))","v":""}]
[null,null,"MARDI",null,{"$f":"IF(ISTEXT('Planning général'!E12),'Planning général'!E12,IF('Planning général'!E12=\"\",\"\"))","v":""}]
[null,null,"MERCREDI","MATIN",{"$f":"IF(ISTEXT('Planning général'!E13),'Planning général'!E13,IF('Planning général'!E13=\"\",\"\"))","v":""}]
[null,null,"MERCREDI",null,{"$f":"IF(ISTEXT('Planning général'!E14),'Planning général'!E14,IF('Planning général'!E14=\"\",\"\"))","v":""}]
[null,null,"MERCREDI","APRÈS-MIDI",{"$f":"IF(ISTEXT('Planning général'!E15),'Planning général'!E15,IF('Planning général'!E15=\"\",\"\"))","v":""}]
[null,null,"MERCREDI",null,{"$f":"IF(ISTEXT('Planning général'!E16),'Planning général'!E16,IF('Planning général'!E16=\"\",\"\"))","v":""}]
[null,null,"JEUDI","MATIN",{"$f":"IF(ISTEXT('Planning général'!E17),'Planning général'!E17,IF('Planning général'!E17=\"\",\"\"))","v":""}]
[null,null,"JEUDI",null,{"$f":"IF(ISTEXT('Planning général'!E18),'Planning général'!E18,IF('Planning général'!E18=\"\",\"\"))","v":""}]
[null,null,"JEUDI","APRÈS-MIDI",{"$f":"IF(ISTEXT('Planning général'!E19),'Planning général'!E19,IF('Planning général'!E19=\"\",\"\"))","v":""}]
[null,null,"JEUDI",null,{"$f":"IF(ISTEXT('Planning général'!E20),'Planning général'!E20,IF('Planning général'!E20=\"\",\"\"))","v":""}]
[null,null,"VENDREDI","MATIN",{"$f":"IF(ISTEXT('Planning général'!E21),'Planning général'!E21,IF('Planning général'!E21=\"\",\"\"))","v":""}]
[null,null,"VENDREDI",null,{"$f":"IF(ISTEXT('Planning général'!E22),'Planning général'!E22,IF('Planning général'!E22=\"\",\"\"))","v":""}]
[null,null,"VENDREDI","APRÈS-MIDI",{"$f":"IF(ISTEXT('Planning général'!E23),'Planning général'!E23,IF('Planning général'!E23=\"\",\"\"))","v":""}]
[null,null,"VENDREDI",null,{"$f":"IF(ISTEXT('Planning général'!E24),'Planning général'!E24,IF('Planning général'!E24=\"\",\"\"))","v":""}]